bitfinex/quotes_SOLUSD_20240616
["timestamp","ask_amount","ask_price","bid_price","bid_amount"]
[1718563573194,23.31051841,148.3,148.22,0.17]
[1718563573353,16.2889,148.3,148.25,5.34]
[1718563573556,16.2889,148.3,148.26,5.34]
[1718563573854,16.2889,148.3,148.22,0.34]
[1718563573855,16.2889,148.3,148.25,5.34]
[1718563574181,5.34,148.31,148.25,5.34]
[1718563574782,7.8347,148.31,148.25,5.34]
[1718563575078,5.34,148.31,148.25,5.34]
[1718563575274,2.4946,148.32,148.25,5.34]
[1718563575582,7.8346,148.32,148.26,5.68]
[1718563575779,7.8346,148.32,148.26,5.34]
[1718563575960,2.4947,148.31,148.26,5.34]
[1718563576797,7.8347,148.31,148.25,5.51]
[1718563577083,12.8242,148.31,148.26,0.34]
[1718563578671,5.34,148.31,148.26,5.68]
[1718563578875,7.8347,148.32,148.26,5.68]
[1718563579378,7.8347,148.32,148.27,5.34]
[1718563579576,12.8239,148.32,148.27,5.34]
[1718563579784,2.4947,148.31,148.27,5.34]
[1718563580275,14.9685,148.31,148.27,5.34]
[1718563580478,14.9687,148.31,148.26,5.68]
[1718563580876,7.4844,148.31,148.26,5.68]
[1718563581189,20.3087,148.31,148.26,5.68]
[1718563582480,12.8244,148.31,148.26,5.68]
[1718563584176,7.8349,148.31,148.26,5.68]
[1718563584378,2.4949,148.31,148.26,5.68]
[1718563585666,7.4844,148.31,148.26,5.68]
[1718563586384,24.9478,148.31,148.26,0.17]
[1718563586578,30.2878,148.31,148.26,0.34]
[1718563586884,2.4949,148.3,148.26,0.34]
[1718563587364,30.2877,148.31,148.26,0.34]
[1718563587986,12.8243,148.31,148.26,0.34]
[1718563589483,20.3086,148.31,148.26,0.34]
[1718563589684,2.4949,148.3,148.26,0.34]
[1718563590084,30.2878,148.31,148.26,0.34]
[1718563592177,30.2878,148.31,148.25,5.68]
[1718563594484,30.2878,148.31,148.26,5.34]
[1718563595889,22.4522,148.32,148.26,0.17]
[1718563596088,2.4944,148.33,148.28,5.34]
[1718563596683,7.4833,148.33,148.28,5.34]
[1718563597000,6.4378,148.37,148.29,5.34]
[1718563597173,7.4828,148.34,148.29,5.34]
[1718563597497,7.4832,148.33,148.29,5.34]
[1718563597699,7.4832,148.33,148.27,0.34]
[1718563597700,14.9665,148.33,148.28,5.51]
[1718563597994,14.9666,148.33,148.28,5.51]
[1718563598783,7.4833,148.33,148.28,5.51]
[1718563599097,2.4945,148.33,148.28,5.51]
[1718563599600,27.7891,148.34,148.28,5.51]
[1718563599601,30.2835,148.34,148.28,5.51]
[1718563599796,24.9435,148.34,148.29,5.34]
[1718563599982,2.4944,148.33,148.29,5.34]
[1718563600385,24.9435,148.34,148.29,5.34]
[1718563601586,7.4831,148.34,148.29,5.34]
[1718563602680,22.4487,148.34,148.29,5.34]
[1718563602882,24.9431,148.34,148.29,5.34]
[1718563603498,2.4944,148.33,148.29,5.34]
[1718563603914,7.4838,148.32,148.27,0.34]
[1718563604119,7.4838,148.32,148.27,5.68]
[1718563604120,2.4946,148.32,148.27,5.68]
[1718563604288,7.8346,148.32,148.27,0.34]
[1718563604482,7.8346,148.32,148.27,20.34]
[1718563604677,7.8346,148.32,148.27,0.34]
[1718563604886,5.34,148.31,148.25,18.552]
[1718563605108,7.8346,148.32,148.26,6.02]
[1718563605322,30.2853,148.33,148.27,5.34]
[1718563605620,2.4946,148.32,148.27,5.34]
[1718563605782,30.2853,148.33,148.27,5.34]
[1718563605984,2.4946,148.32,148.27,5.34]
[1718563607593,7.4838,148.32,148.27,5.34]
[1718563608507,7.4838,148.32,148.26,0.68]
[1718563608693,7.4838,148.32,148.27,5.34]
[1718563609510,14.9676,148.32,148.27,5.34]
[1718563610013,2.4947,148.31,148.27,5.34]
[1718563610586,2.4947,148.31,148.26,6.02]
[1718563612600,30.2861,148.32,148.26,6.02]
[1718563612821,2.4947,148.31,148.26,6.02]
[1718563612989,2.4947,148.31,148.26,0.68]
[1718563613188,5.34,148.3,148.25,13.212]
[1718563613417,2.4951,148.29,148.21,13.212]
[1718563613592,2.4951,148.29,148.24,5.34]
[1718563613793,12.8251,148.3,148.24,5.34]
[1718563614115,7.835,148.3,148.25,5.74788215]
[1718563614415,7.835,148.3,148.25,5.34]
[1718563614714,2.495,148.3,148.26,5.34]
[1718563616006,7.4849,148.3,148.26,5.34]
[1718563617296,2.4951,148.29,148.26,5.34]
[1718563617524,2.4951,148.29,148.25,5.34]
[1718563619014,14.9708,148.29,148.25,5.34]
[1718563619715,2.4955,148.27,148.22,0.17]
[1718563619920,7.4864,148.27,148.22,26.02]
[1718563620094,2.4956,148.26,148.22,26.02]
[1718563620289,14.9728,148.27,148.22,20.68]
[1718563620494,7.4864,148.27,148.22,6.02]
[1718563620725,2.4955,148.27,148.22,6.02]
[1718563621406,30.2936,148.28,148.22,6.02]
[1718563622210,12.826,148.28,148.22,6.02]
[1718563623000,7.8353,148.28,148.22,6.02]
[1718563624125,7.8352,148.28,148.22,0.68]
[1718563624320,7.8352,148.28,148.22,6.02]
[1718563625725,5.34,148.28,148.22,6.02]
[1718563625923,27.7975,148.28,148.22,0.34]
[1718563626121,2.4955,148.27,148.22,5.34]
[1718563626326,7.8355,148.27,148.21,18.552]
[1718563626501,7.8355,148.27,148.22,5.34]
[1718563626794,7.8355,148.27,148.21,18.552]
[1718563627497,7.8355,148.27,148.21,13.212]
[1718563627696,7.8355,148.27,148.21,18.552]
[1718563629925,7.8355,148.27,148.2,0.68]
[1718563629926,5.34,148.25,148.2,0.51]
[1718563630101,7.8358,148.25,148.18,20.0]
[1718563630301,7.8358,148.25,148.19,5.34]
[1718563630503,7.8358,148.25,148.18,20.0]
[1718563630725,7.8358,148.25,148.19,5.34]
[1718563631018,5.34,148.25,148.19,5.34]
[1718563632027,7.8358,148.25,148.19,5.34]
[1718563632223,5.34,148.25,148.18,20.51]
[1718563632399,5.34,148.25,148.19,5.85]
[1718563633949,7.8358,148.25,148.19,5.85]
[1718563635028,12.8273,148.25,148.19,5.85]
[1718563635320,7.836,148.24,148.19,0.51]
[1718563635502,7.8359,148.24,148.18,5.51]
[1718563635697,7.8359,148.24,148.18,5.68]
[1718563635901,5.34,148.24,148.19,5.34]
[1718563636223,7.8354,148.27,148.21,5.34]
[1718563636619,12.8263,148.27,148.21,5.34]
[1718563636919,7.8356,148.26,148.21,5.34]
[1718563637615,7.8356,148.26,148.2,5.85]
[1718563639022,5.34,148.26,148.2,5.85]
[1718563639328,5.34,148.26,148.21,5.34]
[1718563639827,7.8356,148.26,148.21,5.34]
[1718563643438,2.4955,148.27,148.21,5.34]
[1718563643644,2.4955,148.27,148.2,0.68]
[1718563643645,20.3116,148.28,148.22,5.34]
[1718563643810,2.495,148.3,148.25,5.34]
[1718563644011,2.4949,148.3,148.25,5.34]
[1718563644319,22.4544,148.3,148.25,5.34]
[1718563644515,2.4951,148.29,148.24,5.34]
[1718563645017,17.4616,148.33,148.24,5.34]
[1718563645330,7.835,148.3,148.24,5.34]
[1718563645631,12.8249,148.3,148.24,5.34]
[1718563646013,2.4951,148.29,148.24,5.34]
[1718563646242,7.02850483,148.34,148.26,5.34]
[1718563646530,7.02850483,148.34,148.23,0.68]
[1718563646531,2.4944,148.33,148.28,5.34]
[1718563646712,2.4944,148.33,148.29,5.34]
[1718563646915,30.2836,148.34,148.29,5.34]
[1718563647103,2.4944,148.33,148.29,5.34]
[1718563648114,27.7893,148.34,148.29,5.34]
[1718563648115,30.2837,148.34,148.29,5.34]
[1718563648433,30.2836,148.34,148.29,5.34]
[1718563649417,27.7893,148.34,148.29,5.34]
[1718563649730,30.2837,148.34,148.29,5.34]
[1718563650822,2.4944,148.33,148.29,5.34]
[1718563652326,2.4944,148.33,148.28,5.34]
[1718563653329,2.4944,148.33,148.22,128.6874209]
[1718563653330,0.17,148.37,148.22,28.6874209]
[1718563653655,7.8347,148.31,148.25,5.34]
[1718563653939,5.34,148.31,148.26,0.17]
[1718563654136,2.4946,148.32,148.26,6.02]
[1718563654341,7.8346,148.32,148.27,5.34]
[1718563654861,2.4946,148.32,148.27,5.34]
[1718563655654,7.02656588,148.38,148.28,0.17]
[1718563655835,22.4441,148.37,148.32,5.34]
[1718563656016,22.4441,148.37,148.33,0.17]
[1718563656017,7.4812,148.37,148.33,0.17]
[1718563656218,14.9625,148.37,148.33,0.17]
[1718563656517,12.8212,148.37,148.33,0.17]
[1718563656726,2.4939,148.36,148.33,0.17]
[1718563657437,2.4941,148.35,148.31,5.68]
[1718563657642,2.4941,148.35,148.31,5.34]
[1718563658352,2.4941,148.35,148.3,5.34]
[1718563659241,2.4941,148.35,148.29,0.51]
[1718563659242,2.494,148.36,148.31,5.68]
[1718563659429,2.494,148.36,148.31,5.34]
[1718563659631,2.494,148.36,148.32,5.34]
[1718563661145,7.4819,148.36,148.31,5.34]
[1718563663245,14.9637,148.36,148.31,5.34]
[1718563663751,2.494,148.36,148.32,1.26871412]
[1718563663950,2.4939,148.36,148.32,1.26871412]
[1718563664650,7.4815,148.37,148.32,6.60871412]
[1718563664830,2.4939,148.36,148.33,0.34]
[1718563665231,14.9629,148.37,148.33,0.34]
[1718563667178,7.4824,148.35,148.31,0.17]
[1718563667332,7.4824,148.35,148.31,0.51]
[1718563667534,2.4941,148.35,148.31,0.51]
[1718563667930,7.4823,148.35,148.31,0.51]
[1718563668143,2.4941,148.35,148.31,0.51]
[1718563668342,30.2799,148.36,148.31,0.51]
[1718563669356,22.798,148.36,148.31,0.51]
[1718563669743,12.822,148.36,148.31,0.51]
[1718563670059,7.834,148.36,148.31,0.51]
[1718563671055,5.34,148.36,148.31,0.51]
[1718563671960,7.8339,148.36,148.31,0.51]
[1718563672255,5.34,148.36,148.31,0.51]
[1718563674454,5.34,148.36,148.31,5.85]
[1718563675073,7.02656588,148.38,148.31,5.85]
[1718563675233,5.34,148.37,148.31,0.51]
[1718563675554,5.34,148.37,148.31,5.85]
[1718563678859,7.8337,148.37,148.31,5.85]
[1718563680269,12.8213,148.37,148.31,5.85]
[1718563681260,7.8337,148.37,148.31,5.85]
[1718563682260,12.8212,148.37,148.31,5.85]
[1718563683835,4.9878,148.36,148.31,0.34]
[1718563684040,2.4942,148.35,148.29,5.51]
[1718563684241,7.8342,148.35,148.3,20.51]
[1718563684763,5.34,148.35,148.3,20.51]
[1718563685462,7.8341,148.35,148.3,20.51]
[1718563685766,5.34,148.35,148.3,20.51]
[1718563692461,5.34,148.35,148.3,20.34]
[1718563694756,7.0252557,148.39,148.31,5.51]
[1718563694953,2.4933,148.4,148.33,5.51]
[1718563695178,5.34,148.39,148.34,0.34]
[1718563695362,5.34,148.39,148.34,0.17]
[1718563695593,5.34,148.39,148.34,0.34]
[1718563696989,7.8334,148.39,148.34,0.34]
[1718563698474,12.8203,148.39,148.34,0.34]
[1718563699405,20.3006,148.39,148.34,0.34]
[1718563699563,2.4934,148.39,148.34,0.34]
[1718563699885,7.8333,148.4,148.35,5.34]
[1718563700194,2.4934,148.39,148.35,5.34]
[1718563700481,27.7808,148.39,148.34,5.68]
[1718563700690,2.4936,148.38,148.34,0.34]
[1718563701499,30.2743,148.39,148.34,0.34]
[1718563701809,27.7808,148.39,148.34,0.34]
[1718563702094,5.34,148.37,148.32,0.34]
[1718563702306,5.34,148.37,148.32,20.34]
[1718563702676,7.8337,148.37,148.32,25.68]
[1718563702882,5.34,148.37,148.32,25.68]
[1718563703299,12.821,148.38,148.32,25.68]
[1718563704003,5.34,148.38,148.32,25.68]
[1718563704584,17.453,148.4,148.34,0.17]
[1718563704786,17.453,148.4,148.34,5.85]
[1718563704787,7.8334,148.39,148.34,5.85]
[1718563705084,5.34,148.39,148.35,0.17]
[1718563705276,2.4934,148.4,148.35,5.51]
[1718563705277,7.8334,148.4,148.35,5.51]
[1718563706183,12.8199,148.4,148.35,5.51]
[1718563706494,17.8063,148.4,148.35,5.51]
[1718563706700,23.0782669,148.43,148.34,0.51]
[1718563706701,5.34,148.38,148.34,0.17]
[1718563706889,2.4939,148.37,148.33,0.68]
[1718563707789,12.821,148.38,148.33,0.68]
[1718563709684,7.8336,148.38,148.33,0.68]
[1718563710086,12.8208,148.38,148.33,0.34]
[1718563710384,5.34,148.37,148.32,25.34]
[1718563710801,5.34,148.37,148.32,20.0]
[1718563711003,7.8337,148.37,148.32,25.34]
[1718563711193,5.34,148.37,148.32,25.34]
[1718563713989,7.4805,148.39,148.32,25.34]
[1718563713990,7.8336,148.38,148.32,25.34]
[1718563714189,5.34,148.38,148.32,25.34]
[1718563715216,7.8336,148.38,148.32,25.34]
[1718563715399,23.0782669,148.43,148.33,0.34]
[1718563715589,5.34,148.39,148.34,5.68]
[1718563715915,5.34,148.39,148.35,0.17]
[1718563716286,7.8332,148.4,148.35,0.17]
[1718563716885,5.34,148.4,148.35,0.17]
[1718563717109,2.4932,148.41,148.35,5.68]
[1718563717322,5.34,148.41,148.35,5.68]
[1718563717485,24.9299,148.42,148.35,5.68]
[1718563717691,7.8331,148.41,148.35,5.68]
[1718563718310,12.8193,148.41,148.35,5.68]
[1718563718692,20.2985,148.41,148.35,5.68]
[1718563719318,2.4933,148.4,148.35,5.68]
[1718563721223,14.9595,148.4,148.35,5.68]
[1718563722211,2.4934,148.39,148.35,5.68]
[1718563723724,2.4934,148.39,148.35,0.34]
[1718563723926,7.4802,148.39,148.35,0.34]
[1718563724326,14.9605,148.39,148.35,0.34]
[1718563725438,7.4802,148.39,148.35,0.34]
[1718563730016,2.4936,148.38,148.34,0.34]
[1718563730212,27.7828,148.38,148.33,0.34]
[1718563730510,2.4937,148.37,148.34,0.17]
[1718563731116,30.2765,148.38,148.34,0.17]
[1718563731509,22.7956,148.38,148.33,0.34]
[1718563731722,20.3027,148.37,148.33,0.17]
[1718563731919,2.4939,148.36,148.32,20.0]
[1718563732433,30.2778,148.37,148.32,20.0]
[1718563732741,12.8214,148.37,148.32,20.0]
[1718563733111,12.8214,148.37,148.31,19.6252]
[1718563733112,12.8219,148.36,148.31,19.6252]
[1718563733411,20.3037,148.36,148.31,19.6252]
[1718563733607,30.2794,148.36,148.31,19.6252]
[1718563733808,5.34,148.35,148.31,19.6252]
[1718563735319,5.34,148.35,148.31,13.212]
[1718563740227,5.34,148.35,148.3,0.34]
[1718563740433,5.34,148.35,148.27,19.4925]
[1718563740434,5.34,148.34,148.28,20.0]
[1718563740624,5.34,148.34,148.29,0.51]
[1718563740940,5.34,148.33,148.29,0.51]
[1718563741150,14.9648,148.35,148.27,19.4925]
[1718563741323,5.34,148.33,148.27,24.8325]
[1718563742313,12.8232,148.33,148.27,24.8325]
[1718563744218,5.34,148.32,148.27,19.4925]
[1718563745022,5.34,148.31,148.26,0.34]
[1718563745444,5.34,148.31,148.25,5.34]
[1718563745631,5.34,148.3,148.25,5.34]
[1718563747121,5.34,148.28,148.23,19.3194]
[1718563747561,5.34,148.28,148.23,24.6594]
[1718563752631,5.34,148.28,148.23,19.3194]
[1718563752948,7.03317225,148.32,148.24,0.17]
[1718563753165,14.51717225,148.32,148.24,0.68]
[1718563753449,5.34,148.31,148.26,5.34]
[1718563755235,5.34,148.31,148.25,5.34]
[1718563755448,5.34,148.31,148.26,0.34]
[1718563758858,7.8348,148.31,148.26,0.34]
[1718563759466,5.34,148.31,148.26,0.34]
[1718563760632,5.34,148.31,148.26,5.68]
[1718563764062,24.945,148.33,148.27,0.17]
[1718563764236,7.8346,148.32,148.27,0.17]
[1718563765863,20.3076,148.32,148.27,0.17]
[1718563766060,7.4838,148.32,148.27,0.17]
[1718563766240,7.8346,148.32,148.27,0.17]
[1718563767054,12.8238,148.32,148.27,0.17]
[1718563767760,20.3076,148.32,148.27,0.17]
[1718563768769,2.4947,148.31,148.27,0.17]
[1718563771067,7.03080984,148.35,148.29,5.51]
[1718563771068,2.4943,148.34,148.29,5.51]
[1718563771570,7.4828,148.34,148.29,5.51]
[1718563772075,2.4944,148.33,148.29,5.51]
[1718563772255,24.9427,148.34,148.29,5.51]
[1718563773063,22.4483,148.34,148.29,5.51]
[1718563773671,24.9427,148.34,148.29,5.51]
[1718563774674,2.4944,148.33,148.29,5.51]
[1718563774969,2.4946,148.32,148.28,25.4638]
[1718563775342,2.4948,148.31,148.28,13.552]
[1718563775545,27.7917,148.32,148.28,13.382]
[1718563775785,2.4947,148.31,148.28,13.382]
[1718563776172,30.2864,148.32,148.28,13.382]
[1718563776745,7.8347,148.32,148.28,13.382]
[1718563777472,5.34,148.32,148.28,13.382]
[1718563777849,7.8346,148.32,148.28,13.382]
[1718563778372,7.8346,148.32,148.27,0.17]
[1718563778569,7.8346,148.32,148.27,20.51]
[1718563778775,12.8238,148.32,148.27,20.51]
[1718563778967,12.8238,148.32,148.27,20.17]
[1718563780451,17.4613,148.33,148.19,13.212]
[1718563780452,2.4954,148.27,148.19,13.212]
[1718563780656,5.34,148.27,148.21,5.34]
[1718563782157,5.34,148.27,148.22,0.34]
[1718563782451,7.8354,148.27,148.22,0.34]
[1718563782667,5.34,148.26,148.22,0.17]
[1718563782846,5.34,148.26,148.21,5.34]
[1718563783046,5.34,148.26,148.2,5.34]
[1718563783272,5.34,148.26,148.21,20.0]
[1718563784274,24.9534,148.28,148.21,25.34]
[1718563784442,5.34,148.27,148.21,25.34]
[1718563784843,12.8259,148.28,148.22,5.34]
[1718563785043,5.34,148.28,148.22,5.34]
[1718563785270,30.2919,148.29,148.23,5.51]
[1718563786072,2.4952,148.28,148.23,5.51]
[1718563786567,12.8258,148.28,148.23,0.17]
[1718563786982,7.8354,148.27,148.23,0.17]
[1718563787859,5.34,148.27,148.23,0.17]
[1718563788461,5.34,148.27,148.22,0.34]
[1718563789979,12.8263,148.27,148.22,0.17]
[1718563790188,7.8354,148.27,148.22,0.51]
[1718563790393,5.34,148.26,148.22,0.51]
[1718563790564,7.8354,148.27,148.22,0.51]
[1718563790879,5.34,148.27,148.22,0.51]
[1718563792473,5.34,148.26,148.2,25.34]
[1718563793466,5.34,148.26,148.21,5.34]
[1718563793665,7.8355,148.27,148.21,5.34]
[1718563794963,20.3127,148.27,148.21,5.34]
[1718563795164,7.8356,148.26,148.2,25.85]
[1718563795486,7.8356,148.26,148.21,0.51]
[1718563795684,5.34,148.26,148.21,0.51]
[1718563797567,7.8356,148.26,148.21,0.51]
[1718563797762,5.34,148.26,148.21,0.51]
[1718563797958,7.8356,148.26,148.21,0.34]
[1718563798176,5.34,148.25,148.19,18.722]
[1718563798466,5.34,148.25,148.2,0.51]
[1718563801192,5.34,148.25,148.2,0.34]
[1718563801193,5.34,148.24,148.2,0.34]
[1718563808796,5.34,148.25,148.2,0.34]
[1718563810377,7.8358,148.25,148.2,0.34]
[1718563810792,5.34,148.25,148.2,0.34]
[1718563811186,7.8358,148.25,148.15,13.212]
[1718563811388,5.34,148.24,148.18,5.34]
[1718563811578,5.34,148.24,148.19,0.34]
[1718563812984,5.34,148.24,148.18,5.68]
[1718563814208,7.836,148.24,148.18,0.34]
[1718563814508,7.8361,148.23,148.18,0.34]
[1718563814701,2.4962,148.22,148.18,0.34]
[1718563814906,5.34,148.22,148.18,0.17]
[1718563815113,5.34,148.22,148.17,0.51]
[1718563816104,5.34,148.23,148.17,5.85]
[1718563816786,5.34,148.23,148.18,1.34954212]
[1718563817508,7.8361,148.23,148.18,1.34954212]
[1718563818004,5.34,148.23,148.17,5.85]
[1718563818596,7.8361,148.23,148.17,5.85]
[1718563818792,2.496,148.24,148.18,5.34]
[1718563819233,7.836,148.24,148.17,0.51]
[1718563819521,40.2615,148.25,148.18,5.51]
[1718563819737,22.7906,148.25,148.19,6.24986088]
[1718563820015,23.1389,148.25,148.2,0.59237237]
[1718563820216,28.1305,148.25,148.2,0.76237237]
[1718563820806,2.4959,148.24,148.2,0.76237237]
[1718563821010,29.0207,148.27,148.21,5.34]
[1718563821215,7.4864,148.27,148.21,6.68922096]
[1718563821413,20.3127,148.27,148.21,6.68922096]
[1718563821919,2.4956,148.26,148.21,6.68922096]
[1718563822092,2.4956,148.26,148.22,1.34917828]
[1718563822800,2.4956,148.26,148.21,5.51]
[1718563823210,2.4957,148.25,148.21,5.51]
[1718563823411,27.8005,148.26,148.21,0.17]
[1718563823621,2.4957,148.25,148.21,0.34]
[1718563824298,12.8269,148.26,148.21,1.68881415]
[1718563824499,12.8269,148.26,148.21,0.34]
[1718563824696,7.4869,148.26,148.21,5.68]
[1718563825128,7.4865,148.27,148.22,0.34]
[1718563825322,2.4955,148.27,148.22,6.97242529]
[1718563825494,22.7887,148.29,148.22,6.97242529]
[1718563825696,7.4858,148.28,148.23,0.17]
[1718563825923,7.4858,148.28,148.23,5.68]
[1718563826630,14.9716,148.28,148.23,5.68]
[1718563827320,14.9716,148.28,148.24,1.4757187]
[1718563827529,12.8248,148.3,148.25,0.17]
[1718563827712,24.9462,148.32,148.26,5.34]
[1718563827911,5.34,148.31,148.26,5.34]
[1718563828135,2.495,148.3,148.26,5.34]
[1718563828325,27.7932,148.31,148.26,5.34]
[1718563828516,2.4949,148.3,148.26,5.34]
[1718563829101,7.4848,148.3,148.26,5.34]
[1718563831027,2.4949,148.3,148.26,5.34]
[1718563835742,30.2882,148.31,148.26,5.34]
[1718563835956,24.9482,148.31,148.26,5.34]
[1718563836161,12.8247,148.31,148.26,5.34]
[1718563837167,20.3077,148.32,148.26,5.34]
[1718563837365,2.4947,148.31,148.26,5.34]
[1718563837867,7.4842,148.31,148.26,5.34]
[1718563838664,7.4849,148.3,148.25,13.552]
[1718563838837,2.4952,148.28,148.25,13.382]
[1718563839039,12.4756,148.29,148.21,13.212]
[1718563839040,10.3302,148.29,148.21,13.212]
[1718563839252,5.34,148.29,148.24,5.34]
[1718563839765,2.4951,148.29,148.24,5.34]
[1718563840072,2.4952,148.28,148.24,5.34]
[1718563840969,7.8351,148.29,148.24,5.34]
[1718563841171,5.34,148.29,148.24,5.34]
[1718563841342,30.2899,148.3,148.24,5.34]
[1718563842072,2.4951,148.29,148.24,5.34]
[1718563842582,7.4851,148.3,148.25,7.02893723]
[1718563842757,7.4851,148.3,148.25,5.34]
[1718563843376,12.8251,148.3,148.25,5.34]
[1718563844391,20.31,148.3,148.25,5.34]
[1718563844679,12.8251,148.3,148.25,5.34]
[1718563844993,20.3099,148.3,148.25,5.34]
[1718563845167,2.4951,148.29,148.25,5.34]
[1718563845981,2.4951,148.29,148.24,5.51]
[1718563846152,7.4853,148.29,148.25,0.34]
[1718563848176,2.4951,148.29,148.25,0.34]
[1718563849674,7.4853,148.29,148.25,0.34]
[1718563849992,2.4951,148.29,148.25,0.34]
[1718563850198,12.8253,148.29,148.25,0.34]
[1718563850357,12.8253,148.29,148.24,0.51]
[1718563851193,7.8351,148.29,148.24,0.51]
[1718563851778,5.34,148.29,148.24,0.51]
[1718563857365,7.835,148.3,148.24,5.85]
[1718563857990,5.34,148.3,148.24,5.85]
[1718563858587,7.8349,148.3,148.24,5.85]
[1718563861887,12.8247,148.3,148.24,5.85]
[1718563862295,20.3096,148.3,148.24,5.85]
[1718563862463,24.9513,148.29,148.24,5.68]
[1718563863288,2.4952,148.28,148.24,0.34]
[1718563863464,30.2913,148.29,148.24,0.34]
[1718563864181,24.9513,148.29,148.24,0.34]
[1718563864391,22.4578,148.28,148.23,0.17]
[1718563864571,7.8354,148.27,148.22,0.17]
[1718563864882,7.8354,148.27,148.21,19.87906019]
[1718563865090,7.8354,148.27,148.22,1.32697066]
[1718563865274,7.8354,148.27,148.22,6.66697066]
[1718563866414,12.8263,148.27,148.22,6.66697066]
[1718563867503,12.8263,148.27,148.22,5.34]
[1718563867688,2.4956,148.26,148.22,5.34]
[1718563867885,7.8356,148.26,148.21,18.892]
[1718563868089,14.9736,148.26,148.21,18.892]
[1718563868285,14.9736,148.26,148.21,13.552]
[1718563868491,7.4869,148.26,148.21,13.552]
[1718563868803,12.8269,148.26,148.21,13.552]
[1718563869806,20.3147,148.25,148.2,0.17]
[1718563869996,5.34,148.24,148.19,6.6489]
[1718563870188,7.8359,148.24,148.19,6.6489]
[1718563870505,2.4961,148.23,148.18,5.34]
[1718563870821,7.8361,148.23,148.17,18.552]
[1718563871685,7.8361,148.23,148.18,0.34]
[1718563872388,27.8052,148.23,148.18,0.34]
[1718563872708,5.34,148.22,148.18,0.17]
[1718563872913,5.34,148.22,148.18,0.34]
[1718563873681,7.8362,148.23,148.18,0.34]
[1718563877506,20.3167,148.23,148.18,0.34]
[1718563878016,12.8284,148.23,148.18,0.34]
[1718563879188,2.4956,148.26,148.2,5.34]
[1718563879415,2.4956,148.26,148.19,0.34]
[1718563879416,30.2949,148.27,148.21,5.34]
[1718563879711,20.3108,148.29,148.24,5.34]
[1718563880107,2.4952,148.28,148.24,5.34]
[1718563880410,2.4952,148.28,148.22,13.552]
[1718563880411,2.4952,148.28,148.23,5.34]